bitfinex/quotes_ETHUSD_20250623
["timestamp","ask_amount","ask_price","bid_price","bid_amount"]
[1750711143587,14.58194012,2353.8,2353.1,4.24959225]
[1750711143927,0.7643,2353.4,2352.5,8.181]
[1750711144221,0.7643,2353.4,2353.0,4.2497854]
[1750711144533,10.7643,2353.4,2352.6,4.25052962]
[1750711144734,10.0,2353.4,2352.2,0.75]
[1750711145023,10.7643,2352.8,2352.1,4.2513944]
[1750711145218,10.7643,2352.8,2351.9,4.25170753]
[1750711145421,10.7643,2352.8,2352.1,4.25143415]
[1750711146019,10.7643,2352.8,2352.0,0.50017075]
[1750711146320,10.7643,2352.8,2352.1,4.25151991]
[1750711146993,10.7643,2352.8,2352.5,4.25064229]
[1750711147194,0.7643,2352.8,2352.3,4.25113333]
[1750711148230,0.7643,2352.8,2352.2,8.176]
[1750711148432,0.7643,2352.8,2352.2,12.42724337]
[1750711148631,10.7643,2352.8,2352.0,4.25152324]
[1750711148818,2.14058359,2352.7,2351.9,12.42573279]
[1750711149342,2.14058359,2352.7,2352.0,4.25167195]
[1750711149779,2.14058359,2352.7,2351.9,12.42579739]
[1750711150552,0.7643,2352.8,2352.0,0.55]
[1750711150787,0.7643,2352.8,2352.3,4.25104688]
[1750711151072,0.7643,2352.8,2352.2,4.25124593]
[1750711151282,0.7643,2352.8,2352.4,4.25095773]
[1750711151575,0.7643,2352.8,2352.5,4.25072333]
[1750711151786,0.7643,2352.8,2352.4,0.85020747]
[1750711151949,0.7643,2352.8,2352.2,4.25120387]
[1750711152371,0.7643,2352.8,2352.3,4.25108902]
[1750711154057,0.7643,2352.8,2352.4,4.25081264]
[1750711154252,0.7643,2352.8,2352.3,4.25097922]
[1750711154599,0.7643,2352.8,2352.1,4.25138253]
[1750711155211,0.7643,2352.8,2352.1,4.25143069]
[1750711155509,0.7643,2352.8,2352.2,4.25133361]
[1750711155706,0.7643,2352.8,2352.1,1.66680507]
[1750711155707,0.7643,2352.8,2352.3,4.25102689]
[1750711155873,0.7643,2352.8,2352.1,1.66680507]
[1750711156200,0.7643,2352.8,2351.7,0.7633]
[1750711156201,0.7643,2352.8,2352.2,8.163]
[1750711158313,0.7643,2352.8,2352.0,12.41159258]
[1750711158967,0.7643,2352.8,2352.1,4.2514631]
[1750711161006,0.7643,2352.8,2352.1,4.25141167]
[1750711161310,0.7643,2352.8,2352.2,4.25130638]
[1750711161480,0.7643,2352.8,2352.2,5.91757819]
[1750711161985,0.7643,2352.8,2352.2,1.66627181]
[1750711162393,0.7643,2352.8,2351.7,8.153]
[1750711162394,10.64153592,2352.4,2351.7,8.153]
[1750711162591,0.7871,2352.3,2351.9,4.25174905]
[1750711162793,0.7871,2352.7,2351.8,0.7985]
[1750711163014,0.7871,2352.7,2352.3,4.25105966]
[1750711163336,0.7871,2352.7,2352.1,8.151]
[1750711163691,0.7871,2352.7,2352.1,9.81644458]
[1750711163895,0.7871,2352.7,2352.3,4.2510713]
[1750711164407,0.7871,2352.7,2352.4,4.25096697]
[1750711164826,0.7871,2352.7,2352.5,4.25077137]
[1750711165221,0.7871,2352.7,2352.4,4.25088315]
[1750711165526,0.7871,2352.7,2352.5,4.25075298]
[1750711165731,0.7871,2352.7,2352.5,5.10091659]
[1750711166057,0.7871,2352.7,2352.5,0.85016361]
[1750711167424,0.7529,2352.9,2352.3,4.25108938]
[1750711167851,0.7529,2352.9,2352.3,4.25104823]
[1750711168150,0.7529,2352.9,2352.3,4.25100096]
[1750711168361,15.34180081,2352.9,2352.3,4.25100096]
[1750711168556,15.34180081,2352.9,2352.2,4.25133917]
[1750711168734,10.0,2352.8,2352.3,4.25100407]
[1750711169060,10.0,2352.8,2352.2,1.07272349]
[1750711169221,0.7529,2352.9,2352.5,4.2507124]
[1750711169666,0.7512,2353.5,2352.7,0.7523]
[1750711169866,10.7512,2353.5,2352.8,4.25013628]
[1750711170035,0.7512,2353.5,2352.9,4.24994054]
[1750711170376,10.7512,2353.5,2352.9,4.25006989]
[1750711170540,0.7512,2353.5,2352.9,4.25006989]
[1750711170734,0.7512,2353.5,2352.8,4.25015385]
[1750711170735,2.28521008,2353.5,2352.8,4.25015385]
[1750711170971,14.58890081,2353.3,2352.6,8.137]
[1750711171171,14.58890081,2353.0,2352.4,6.79888747]
[1750711171378,14.58890081,2353.0,2352.4,2.548]
[1750711171547,14.58890081,2353.0,2352.4,6.79892289]
[1750711171949,14.58890081,2353.0,2352.4,2.548]
[1750711172271,10.0,2352.9,2352.4,2.548]
[1750711174277,16.12634089,2353.0,2352.4,2.548]
[1750711174278,1.53744008,2353.0,2352.4,6.79886826]
[1750711174478,0.7855,2353.2,2352.8,4.25015619]
[1750711174681,0.7855,2353.2,2352.7,4.25032731]
[1750711175049,0.7855,2353.2,2352.6,4.25051426]
[1750711175373,0.7855,2353.2,2352.6,4.25060394]
[1750711175374,1.86405,2353.2,2352.6,4.25060394]
[1750711175781,0.7855,2353.2,2352.7,4.25036505]
[1750711175963,0.7855,2353.2,2352.8,4.25025338]
[1750711176165,0.7855,2353.2,2352.6,4.25055544]
[1750711176491,0.7855,2353.2,2352.7,4.25033402]
[1750711176991,0.7855,2353.2,2352.6,4.25051661]
[1750711177152,0.7855,2353.2,2352.7,4.25042373]
[1750711177348,0.7855,2353.2,2352.8,4.25020574]
[1750711177666,0.7855,2353.2,2352.7,4.2503343]
[1750711178255,0.7855,2353.2,2352.9,4.24996224]
[1750711178485,0.7855,2353.2,2352.9,4.2500292]
[1750711178684,0.7855,2353.2,2352.8,4.25020163]
[1750711178868,0.7855,2353.2,2352.9,4.24996833]
[1750711179592,0.7855,2353.2,2352.8,4.25014654]
[1750711179892,0.7855,2353.2,2352.9,4.25000785]
[1750711180098,0.7855,2353.2,2352.8,4.25012158]
[1750711180389,0.7855,2353.2,2352.8,4.25016991]
[1750711180792,0.7855,2353.2,2353.0,4.24987041]
[1750711180955,0.7871,2353.6,2353.1,4.24971314]
[1750711181156,0.7871,2353.6,2353.1,0.42497131]
[1750711181355,0.7871,2353.6,2353.1,4.67459544]
[1750711181671,0.7871,2353.6,2353.1,4.67464008]
[1750711181869,0.7871,2353.6,2353.2,4.24943364]
[1750711182070,0.7871,2353.6,2353.3,4.24934136]
[1750711182776,0.7871,2353.6,2353.2,4.24950027]
[1750711183094,1.21222282,2354.2,2353.8,4.24828117]
[1750711183296,1.21222282,2354.2,2353.2,1.27914716]
[1750711183297,1.21222282,2354.2,2353.7,0.8266]
[1750711183601,0.7871,2354.2,2353.6,8.112]
[1750711183766,0.7871,2354.2,2353.9,4.24818845]
[1750711183968,9.33084514,2355.8,2354.1,0.55]
[1750711183969,0.7871,2355.3,2354.1,0.55]
[1750711184296,7.86,2356.0,2354.5,0.55]
[1750711184297,0.7871,2355.6,2354.5,0.55]
[1750711184496,0.7871,2355.6,2355.1,4.24609112]
[1750711184696,0.7871,2356.1,2355.4,4.24545904]
[1750711184870,0.7871,2356.1,2355.3,2.548]
[1750711185065,0.7871,2356.1,2355.7,4.24493342]
[1750711185268,0.7871,2356.1,2355.4,0.55]
[1750711185592,0.7871,2356.1,2355.3,2.548]
[1750711185593,0.7871,2356.6,2356.2,4.24411014]
[1750711185755,0.7871,2356.6,2356.3,4.24379192]
[1750711186197,0.7871,2356.6,2356.1,4.24418216]
[1750711186352,0.7871,2356.6,2356.1,4.24421041]
[1750711186553,0.7871,2356.6,2356.2,4.2440196]
[1750711186753,0.7871,2356.6,2356.0,8.103]
[1750711186974,0.7871,2356.6,2356.0,9.1644]
[1750711187824,10.0,2357.1,2356.3,4.24377747]
[1750711187825,0.7871,2357.1,2356.3,4.24377747]
[1750711188115,10.7871,2357.1,2356.3,4.24377747]
[1750711188279,10.7871,2357.1,2356.2,4.24403085]
[1750711188477,10.60684542,2356.8,2356.0,9.1584]
[1750711188680,10.7871,2356.7,2355.5,0.3098]
[1750711188917,10.7871,2356.7,2355.7,14.85185153]
[1750711189298,10.0,2356.3,2355.5,12.65100772]
[1750711189495,10.0,2356.3,2355.5,8.4058]
[1750711189713,10.0,2356.3,2355.2,0.7821]
[1750711189714,0.7629,2356.2,2355.2,4.24577759]
[1750711189916,10.0,2355.9,2355.3,0.35442729]
[1750711190112,0.7629,2356.2,2355.3,0.35442729]
[1750711190310,0.7712,2356.6,2356.1,4.24430202]
[1750711190634,0.7712,2356.6,2356.0,8.094]
[1750711190844,0.7712,2356.6,2356.0,9.1544]
[1750711191006,10.0,2357.4,2356.2,4.24412189]
[1750711191343,10.0,2357.4,2356.1,0.55]
[1750711191344,0.7712,2357.3,2356.4,4.24364284]
[1750711191692,0.7712,2357.3,2356.4,4.24364524]
[1750711192037,0.7712,2357.3,2356.3,0.55]
[1750711192208,0.7672,2357.1,2356.0,1.0604]
[1750711192411,10.7672,2356.9,2355.8,12.33269548]
[1750711192839,10.7672,2356.9,2355.9,4.24464292]
[1750711193014,18.8552,2356.9,2355.9,4.24464292]
[1750711193210,0.7672,2356.9,2355.8,8.088]
[1750711193413,10.7672,2356.9,2356.1,4.24414908]
[1750711193610,10.7672,2356.9,2356.2,4.24411327]
[1750711193840,10.7672,2356.9,2356.1,5.09309991]
[1750711193841,0.7672,2356.9,2356.1,5.09309991]
[1750711194141,0.7672,2356.9,2356.2,4.24404337]
[1750711194514,0.7672,2356.9,2356.2,0.55]
[1750711194745,0.7672,2356.9,2356.5,4.24343486]
[1750711194948,10.0,2357.2,2356.7,4.24310973]
[1750711194949,10.7871,2357.2,2356.7,4.24310973]
[1750711195149,10.7871,2357.2,2356.6,4.24331017]
[1750711195345,10.7871,2357.2,2356.6,5.09201246]
[1750711195913,10.7871,2357.2,2356.7,4.24322039]
[1750711196113,10.7871,2357.2,2356.6,5.0920053]
[1750711196336,10.7871,2357.2,2356.6,0.84870229]
[1750711196539,10.7871,2357.2,2356.3,7.56164418]
[1750711196540,0.7635,2357.5,2356.5,0.55]
[1750711196753,0.7635,2357.5,2356.7,0.55]
[1750711197052,0.7635,2357.5,2357.0,4.24258046]
[1750711197554,0.7635,2357.5,2357.1,4.24249598]
[1750711197914,0.7635,2357.9,2357.2,4.24229491]
[1750711198113,0.7635,2357.9,2357.3,0.62005856]
[1750711198643,0.7635,2357.9,2357.0,4.24260411]
[1750711198839,0.7635,2357.9,2356.9,2.509]
[1750711199047,10.0,2357.6,2356.9,2.509]
[1750711199218,0.7635,2357.5,2356.9,6.75177659]
[1750711200099,0.7635,2357.5,2357.0,4.24252959]
[1750711200259,0.7635,2357.5,2357.1,1.09943189]
[1750711200461,0.7635,2357.5,2357.0,4.24258767]
[1750711200656,0.7635,2357.5,2356.8,4.24296345]
[1750711200863,0.7635,2357.5,2356.8,4.24300732]
[1750711201093,10.0,2357.2,2356.5,4.24358056]
[1750711201601,0.7614,2357.1,2356.4,2.508]
[1750711201959,2.06068454,2357.2,2356.4,2.508]
[1750711201960,0.7614,2357.3,2356.6,0.55]
[1750711202374,0.7614,2357.9,2357.1,0.8179]
[1750711202576,0.7614,2357.9,2357.7,4.24134569]
[1750711202899,0.7614,2358.3,2357.2,10.55]
[1750711203055,0.7614,2358.3,2357.5,0.55]
[1750711203258,0.7614,2358.3,2357.8,4.24121561]
[1750711203472,0.7614,2358.3,2357.9,4.24097888]
[1750711203661,0.7614,2358.3,2357.4,0.8179]
[1750711203862,11.36824542,2358.3,2357.6,4.24159524]
[1750711204112,0.7614,2358.3,2357.5,8.062]
[1750711204398,0.7614,2358.3,2357.8,4.24123885]
[1750711204899,0.7614,2358.3,2358.0,4.24080506]
[1750711205261,0.7614,2358.3,2357.6,4.7915993]
[1750711205460,0.7614,2358.3,2357.5,8.062]
[1750711205461,0.7871,2358.0,2357.1,3.294]
[1750711205659,1.13939454,2357.9,2357.1,3.294]
[1750711205920,1.13939454,2357.9,2357.1,6.75040566]
[1750711206214,11.13939454,2357.9,2357.1,4.24236598]
[1750711206512,11.13939454,2357.9,2357.1,4.24237238]
[1750711206663,0.7871,2357.8,2357.0,4.24258479]
[1750711206858,1.19264945,2357.7,2357.0,4.24258479]
[1750711207062,0.7871,2357.8,2357.3,4.24213794]
[1750711207676,0.7871,2357.8,2357.4,4.24194815]
[1750711207879,0.7871,2357.8,2357.3,4.242046]
[1750711208094,0.7871,2357.8,2356.9,4.24286138]
[1750711208264,0.752,2357.5,2356.8,4.24301493]
[1750711208465,10.752,2357.1,2356.2,4.24399269]
[1750711208698,10.60684542,2356.8,2356.3,0.35427687]
[1750711209007,10.60684542,2356.4,2356.3,0.35427687]
[1750711209298,21.37724542,2356.4,2356.3,0.35427687]
[1750711209481,23.55835059,2356.4,2356.3,0.35427687]
[1750711211110,12.95150517,2356.4,2356.3,0.35427687]
[1750711211268,23.55835059,2356.4,2356.3,0.35427687]
[1750711214892,24.10835059,2356.4,2356.3,0.35427687]
[1750711215129,23.55835059,2356.4,2356.3,0.35427687]
[1750711216399,0.7704,2356.4,2356.3,0.35427687]
[1750711216606,1.13939454,2357.9,2356.3,0.35427687]
[1750711216607,0.7871,2356.9,2356.3,0.35427687]
[1750711216803,10.7871,2356.9,2356.3,0.35427687]
[1750711217034,10.60684542,2356.6,2356.3,0.35427687]
[1750711217194,0.7871,2356.4,2356.3,0.35427687]
[1750711217400,2.92649454,2356.4,2356.3,0.35427687]
[1750711218942,2.92649454,2356.4,2355.6,4.24506019]
[1750711218943,0.7871,2356.4,2355.6,4.24506019]
[1750711219407,0.7871,2356.4,2355.8,4.24468356]
[1750711220101,0.7871,2356.7,2355.8,0.7774]
[1750711220332,7.86,2357.0,2355.9,4.24466233]
[1750711220549,8.6471,2357.1,2355.9,0.55]
[1750711220701,12.72899454,2357.0,2355.9,4.7945296]
[1750711221010,10.60684542,2356.8,2355.9,4.24463756]
[1750711221214,10.60684542,2356.8,2356.0,4.24447866]
[1750711221400,10.60684542,2356.8,2355.9,4.24455479]
[1750711221600,10.60684542,2356.8,2356.0,4.24443763]
[1750711221948,10.60684542,2356.8,2356.0,5.17109525]
[1750711222098,0.7871,2356.9,2356.2,4.24412189]
[1750711222294,0.7871,2356.9,2356.1,0.55]
[1750711222494,0.7871,2356.9,2356.2,4.24394918]
[1750711223143,10.60684542,2356.6,2355.8,0.7774]
[1750711223296,0.7871,2356.9,2355.8,0.7774]
[1750711223297,10.0,2356.8,2356.0,4.24443947]
[1750711223504,10.0,2356.8,2356.0,5.1711004]
[1750711223943,0.7871,2356.9,2356.1,0.55]
[1750711224105,0.7871,2357.2,2356.4,4.24366761]
[1750711224305,0.7871,2357.2,2356.5,4.24352271]
[1750711224825,0.7871,2357.2,2356.4,5.05285889]
[1750711225033,0.7871,2357.2,2356.4,6.2298332]
[1750711225568,0.7871,2357.2,2356.5,4.24347887]
[1750711225772,0.7871,2357.2,2356.4,1.98617431]
[1750711225920,0.7871,2357.2,2356.4,0.8092]
[1750711226120,12.473,2357.4,2356.5,0.55]
[1750711226320,2.473,2357.4,2356.9,4.24276998]
[1750711226519,1.11393945,2357.8,2357.0,5.01711608]
[1750711226771,1.92649454,2357.9,2357.1,4.24247307]
[1750711226928,1.92649454,2357.9,2357.0,5.01717591]
[1750711227119,1.92649454,2357.9,2357.2,4.24215451]
[1750711227320,1.92649454,2357.9,2357.0,5.01718556]
[1750711227528,10.0,2357.6,2356.7,3.2699]
[1750711227755,12.06068454,2357.6,2356.7,9.06665615]
[1750711228017,12.06068454,2357.6,2356.7,4.82343691]
[1750711228324,10.0,2357.2,2356.3,0.7969]
[1750711228526,0.7586,2357.1,2356.3,0.7969]
[1750711229058,0.7586,2357.1,2356.1,4.24430144]
[1750711229372,0.7586,2357.1,2356.1,4.24421743]
[1750711229950,0.7586,2357.1,2356.0,5.96796829]
[1750711230174,10.60684542,2356.5,2355.7,0.765]
[1750711230373,0.7775,2356.3,2355.4,3.238]
[1750711230574,0.7775,2356.3,2355.5,4.59960227]
[1750711231659,0.7775,2356.3,2355.5,0.3543972]
[1750711232150,0.7775,2356.3,2355.6,4.24509449]
[1750711232350,0.7775,2356.3,2355.7,0.42450945]
[1750711232983,10.0,2356.4,2355.7,4.24489725]
[1750711233299,10.0,2356.4,2355.6,4.24515535]
[1750711233606,10.0,2356.4,2355.7,4.24500775]
[1750711234250,0.7597,2356.6,2355.5,0.55]
[1750711234451,0.7597,2356.6,2355.9,4.24454766]
[1750711234689,0.7597,2356.6,2356.0,5.09340493]
[1750711234891,0.7597,2356.6,2356.0,0.84893754]
[1750711235296,0.7597,2356.6,2356.1,4.24422197]
[1750711235496,0.8024,2357.2,2356.2,4.24396164]
[1750711235683,0.8024,2357.2,2356.4,4.24369725]
[1750711235888,10.8024,2357.2,2356.4,0.42436973]
[1750711236089,10.8024,2357.2,2356.2,4.79402098]
[1750711236969,10.8024,2357.2,2356.2,0.55]
[1750711237168,10.8024,2357.2,2356.2,4.79403201]
[1750711237377,10.8024,2357.2,2356.3,4.24393418]
[1750711238290,10.8024,2357.2,2356.2,0.55]
[1750711238500,10.8024,2357.2,2356.3,0.8557]
[1750711238902,10.8024,2357.2,2356.3,5.0996317]
[1750711239274,10.8024,2357.2,2356.4,0.55]
[1750711239475,10.8024,2357.2,2356.3,0.8557]
[1750711239680,10.8024,2357.2,2356.4,0.55]
[1750711240004,22.73678542,2357.2,2356.3,0.8557]
[1750711240202,22.73678542,2357.2,2356.1,4.24420716]
[1750711240203,10.0,2357.0,2356.1,4.24420716]
[1750711240585,10.0,2357.0,2356.3,4.24392026]
[1750711241013,10.0,2357.0,2356.1,4.24423918]
[1750711241783,10.0,2357.0,2356.1,0.55]
[1750711241989,10.60684542,2356.8,2356.1,0.55]
[1750711242189,10.60684542,2356.8,2356.2,0.88828969]
[1750711242418,10.60684542,2356.8,2356.2,5.13223348]
[1750711242604,1.32754,2357.2,2356.7,4.24312061]
[1750711242605,0.7727,2357.2,2356.7,4.24312061]
[1750711242923,0.7727,2357.2,2356.7,4.24317205]
[1750711243109,0.7727,2357.2,2356.7,4.79310069]
[1750711243417,0.7727,2357.2,2356.8,0.98224299]
[1750711244728,0.7727,2357.2,2356.5,4.24349541]
[1750711244939,0.7727,2357.2,2356.7,4.24311546]
[1750711245141,0.7727,2357.2,2356.5,4.24350009]
[1750711245306,0.7727,2357.2,2356.5,4.24342916]
[1750711246140,0.7727,2357.2,2356.6,4.24338202]
[1750711246446,0.7727,2357.2,2356.7,0.84868112]
[1750711246633,0.7727,2357.2,2356.5,4.24347624]
[1750711246833,0.7727,2357.2,2356.6,4.2433791]
[1750711247210,0.7727,2357.2,2356.5,4.24347374]
[1750711247546,0.7727,2357.2,2356.4,4.79366309]
[1750711247707,0.7727,2357.2,2356.5,4.24356509]
[1750711247906,10.0,2357.1,2356.3,2.473]
[1750711248342,10.0,2357.1,2355.9,14.44059001]
[1750711248343,10.60684542,2356.8,2355.9,14.44059001]
[1750711248544,0.782,2356.7,2355.9,14.44059001]
[1750711248746,0.782,2356.7,2355.7,11.65599372]
[1750711248747,10.782,2356.7,2355.7,3.2537]
[1750711248954,10.782,2356.7,2355.8,4.57021053]
[1750711249526,10.782,2356.7,2356.0,4.24448217]
[1750711251052,10.782,2356.7,2355.9,4.24455151]
[1750711251733,10.782,2356.7,2356.0,4.24447293]
[1750711252944,10.782,2356.7,2356.0,5.12593377]
[1750711253142,10.782,2356.7,2356.0,0.88146084]
[1750711253314,10.782,2356.7,2356.0,5.12593875]
[1750711253939,10.782,2356.7,2356.0,5.12580532]
[1750711254144,10.782,2356.7,2356.2,4.24404935]
[1750711254357,10.196,2357.7,2356.4,4.24376167]
[1750711254358,0.8024,2357.0,2356.4,4.24376167]
[1750711254562,0.8024,2357.0,2356.5,4.24355668]
[1750711255060,0.8024,2357.0,2356.4,4.24365426]
[1750711255243,0.8024,2357.0,2356.5,4.2435675]
[1750711255645,0.8024,2357.0,2356.6,4.2433832]
[1750711255960,0.7859,2357.3,2356.8,4.2429469]
[1750711256658,0.7859,2357.3,2356.8,4.24296866]
[1750711256858,0.7859,2357.3,2356.8,4.24287865]
[1750711257159,0.7859,2357.3,2357.0,4.24263424]
[1750711257458,0.7859,2357.6,2357.1,4.24247071]
[1750711257862,10.7859,2357.6,2357.1,4.24247071]
[1750711258163,0.7859,2357.9,2357.3,4.24205171]
[1750711258362,0.7859,2357.9,2357.1,0.84851519]
[1750711258532,11.39274542,2357.9,2357.1,0.84851519]
[1750711258861,10.0,2357.8,2357.2,4.24232139]
[1750711259444,10.0,2357.8,2357.0,4.24268137]
[1750711259658,10.0,2357.8,2357.2,4.24231632]
[1750711260044,10.0,2357.8,2357.1,4.24240047]
[1750711260236,10.0,2357.8,2357.2,4.24232044]
[1750711260443,10.0,2357.8,2357.3,4.2420389]
[1750711261474,10.0,2357.8,2357.4,4.24190523]
[1750711261624,0.8021,2358.2,2357.4,0.7985]
[1750711261824,0.8021,2358.2,2357.5,4.24169997]
[1750711262028,10.8021,2358.2,2357.5,4.24169997]
[1750711262225,10.8021,2358.2,2357.6,4.24157149]
[1750711262666,0.8021,2358.2,2357.6,4.24156564]
[1750711263037,0.8021,2358.2,2357.8,4.24123737]
[1750711263242,0.8021,2358.7,2357.6,0.55]
[1750711263430,0.8021,2358.7,2358.0,4.24075685]
[1750711263632,0.8021,2358.7,2358.2,4.2404159]
[1750711263827,0.8021,2358.7,2358.1,4.24066771]
[1750711264161,0.8021,2358.7,2358.0,5.91377651]
[1750711264332,0.8021,2358.7,2358.2,4.24042052]
[1750711264531,0.8021,2358.7,2358.0,1.67298188]
[1750711265136,0.8021,2358.7,2358.0,0.84818188]
[1750711265352,10.0,2358.6,2357.9,7.951]
[1750711266066,10.0,2358.6,2358.0,4.24085557]
[1750711266268,10.0,2358.6,2357.9,12.19196807]
[1750711266446,10.0,2358.6,2357.9,7.951]
[1750711267265,0.8021,2358.5,2357.8,0.55]
[1750711267632,0.8021,2358.5,2357.8,5.27036884]
[1750711268130,0.8021,2358.5,2357.8,1.02913336]
[1750711268329,0.8021,2358.5,2357.8,5.27036535]
[1750711268525,0.8021,2358.5,2357.8,1.02913336]
[1750711269143,0.8021,2358.5,2357.8,5.27029102]
[1750711269339,0.8021,2358.5,2357.7,0.55]
[1750711269555,0.8021,2358.5,2357.7,4.79131665]
[1750711269757,10.0,2358.2,2357.6,10.383]
[1750711269981,0.7961,2358.1,2357.6,2.437]
[1750711270271,14.52644927,2358.0,2357.6,2.437]
[1750711270969,16.0587042,2358.0,2357.2,10.61723204]
[1750711271676,0.7961,2358.1,2357.2,10.61723204]
[1750711271972,0.7961,2358.1,2357.4,4.2418349]
[1750711272149,0.7961,2358.1,2357.7,4.24141279]
[1750711272551,0.7961,2358.1,2357.6,4.24151027]
[1750711272735,0.8021,2358.4,2357.5,1.308]
[1750711273076,0.8021,2358.4,2357.9,4.24088477]
[1750711273282,12.0565826,2358.4,2357.3,4.24213605]
[1750711273430,0.8021,2358.2,2357.3,4.24213605]
[1750711273774,0.8021,2358.2,2357.3,0.55]
[1750711274076,0.8021,2358.2,2357.5,4.24163359]
[1750711274239,0.8021,2358.2,2357.5,4.24168205]
[1750711274445,0.8021,2358.2,2357.6,0.4241682]
[1750711274632,0.8021,2358.2,2357.6,4.66575172]
[1750711275138,0.8021,2358.2,2357.6,0.4241682]
[1750711275368,0.8021,2358.2,2357.6,4.66575321]
[1750711275851,0.8021,2358.2,2357.7,4.24141323]
[1750711276052,0.8021,2358.2,2357.7,5.13212987]
[1750711276248,10.7869,2358.7,2357.9,4.24091505]
[1750711276573,10.7869,2358.7,2357.8,4.24115657]
[1750711277140,10.7869,2358.7,2357.8,0.55]
[1750711277442,10.7869,2358.7,2357.6,15.84241096]
[1750711277443,0.7869,2358.5,2357.6,14.60458468]
[1750711277749,0.7869,2358.5,2358.0,4.24084605]
[1750711278257,0.7869,2358.5,2357.7,1.3637]
[1750711278599,0.7869,2358.5,2357.9,4.24097336]
[1750711279098,0.7869,2358.5,2358.0,4.24080475]
[1750711279242,0.7869,2358.5,2358.1,4.24069511]
[1750711279590,0.7869,2358.5,2357.8,4.24115851]
[1750711279791,0.7869,2358.5,2357.8,6.02643239]
[1750711280394,10.7869,2358.5,2357.8,1.78527388]
[1750711281189,10.7869,2358.5,2357.2,11.41823204]
[1750711281190,11.2544826,2358.2,2357.2,11.41823204]
[1750711281384,11.2544826,2358.2,2356.3,4.24382385]
[1750711281385,11.2544826,2357.8,2357.0,2.4]
[1750711281665,0.7968,2357.7,2357.1,4.24245284]
[1750711281868,0.7968,2357.7,2357.0,4.24257875]
[1750711282435,0.7968,2357.7,2357.1,4.24239271]
[1750711282642,0.7994,2358.1,2357.5,0.55]
[1750711282876,0.7994,2358.1,2357.7,4.24140127]
[1750711283172,0.7939,2358.5,2358.0,4.2408821]
[1750711283392,0.7939,2358.5,2358.1,4.24068672]
[1750711283686,0.7939,2358.5,2357.9,4.79097383]
[1750711284559,0.7939,2358.5,2358.0,4.24087375]
[1750711284760,0.7939,2358.5,2357.9,4.24101369]
[1750711285370,0.7939,2358.5,2358.0,4.24087462]
[1750711286080,0.7939,2358.5,2357.9,5.13709756]
[1750711286301,0.7939,2358.5,2358.0,4.24086787]
[1750711286455,0.7939,2358.5,2358.0,4.24070668]
[1750711286659,0.7939,2358.5,2358.0,4.24072315]
[1750711287055,0.7939,2358.5,2358.1,4.2406986]
[1750711287387,0.7939,2358.5,2358.0,0.93778549]
[1750711287590,0.7939,2358.5,2357.8,0.55]
[1750711287794,0.7939,2358.5,2358.1,4.24062248]
[1750711288155,0.7939,2358.5,2358.0,4.24077554]
[1750711288593,0.7939,2358.5,2358.3,4.24026813]
[1750711288797,0.7939,2358.5,2358.2,4.24045506]
[1750711289095,0.7939,2358.5,2358.2,4.24051741]
[1750711289273,7.899,2359.1,2358.3,0.42405174]
[1750711289467,10.0,2359.0,2358.3,4.66425564]
[1750711289673,10.0,2359.0,2358.3,0.42405174]
[1750711289872,10.0,2359.0,2358.3,4.24023484]
[1750711290263,10.0,2359.0,2358.4,4.24014909]
[1750711290672,0.8021,2358.9,2358.2,4.79043514]
[1750711290879,0.8021,2358.9,2358.3,4.24033214]
[1750711291461,0.8021,2358.9,2358.2,0.55]
[1750711291806,0.7871,2359.2,2358.8,4.23933927]
[1750711291978,0.7871,2359.2,2358.9,4.2392302]
[1750711292297,0.7871,2359.2,2358.6,4.23978816]
[1750711292507,0.7871,2359.2,2358.6,5.32775325]
[1750711292801,0.7871,2359.2,2358.7,4.2396128]
[1750711293303,0.7871,2359.5,2358.7,0.55]
[1750711293467,0.7871,2359.5,2358.7,0.41897947]
[1750711293660,0.7871,2359.5,2358.7,1.68013446]
[1750711293890,10.7871,2359.5,2358.9,4.23922116]
[1750711294122,10.7871,2359.5,2358.7,4.2395239]
[1750711294329,0.7871,2359.4,2358.7,4.2395239]
[1750711295403,0.7871,2359.4,2358.7,4.2395919]
[1750711295599,0.7871,2359.4,2359.0,4.23907062]
[1750711295790,10.09690972,2361.1,2359.6,4.23800644]
[1750711295791,0.7871,2359.7,2359.6,4.23800644]
[1750711296714,0.7871,2360.1,2359.6,4.23800644]
[1750711297118,0.7871,2360.1,2359.4,4.78833638]
[1750711297344,0.2203921,2360.2,2360.1,4.23710859]
[1750711297627,0.2203921,2360.2,2360.1,5.21081945]
[1750711297793,0.2203921,2360.2,2360.1,0.97371086]
[1750711297990,0.2203921,2360.2,2360.1,5.21081945]
[1750711298625,0.2203921,2360.2,2360.1,5.99301945]
[1750711299828,0.2203921,2360.2,2360.1,16.42318261]
[1750711303902,0.7871,2361.3,2361.1,4.23529049]
[1750711304103,10.7833,2362.0,2361.2,7.866]
[1750711304300,10.7833,2362.0,2360.8,0.7726]
[1750711304301,0.7833,2361.5,2360.8,4.23583815]
[1750711304502,10.0,2361.3,2360.3,4.23660498]
[1750711304848,10.0,2361.3,2360.6,4.23620947]
[1750711304849,0.7833,2361.2,2360.6,4.23620947]
[1750711305079,0.7833,2361.2,2360.5,0.55]
[1750711305263,0.7871,2361.6,2361.1,4.23528932]
[1750711305433,0.7871,2361.6,2361.1,12.09828932]
[1750711305612,0.7871,2361.6,2361.1,7.863]
[1750711305812,0.7871,2361.6,2361.1,9.3126555]
[1750711306060,0.7871,2361.6,2361.1,13.54789507]
[1750711306358,0.7871,2361.6,2361.2,4.23508341]
[1750711306502,0.7871,2361.6,2361.1,13.54786842]
[1750711306830,0.7871,2361.6,2361.1,13.54783257]
[1750711307034,0.7871,2361.6,2361.3,4.23487661]
[1750711307353,0.7871,2361.6,2361.2,2.01812857]
[1750711307723,0.7871,2361.9,2361.4,4.23461751]
[1750711307958,0.7871,2361.9,2361.2,2.01812857]